bitfinex/quotes_SOLUSD_20220128
["timestamp","ask_amount","ask_price","bid_price","bid_amount"]
[1643329092296,43.65664549,90.106,89.975,0.1]
[1643329092494,6.0,90.096,89.98,16.6667]
[1643329092696,6.0,90.096,89.981,0.1]
[1643329092899,3.20669142,90.095,89.981,0.1]
[1643329093095,6.0,90.085,89.981,0.35]
[1643329093296,40.38986544,90.084,89.981,0.35]
[1643329093498,6.0,90.074,89.981,0.35]
[1643329093897,0.25,90.073,89.981,0.35]
[1643329094701,0.25,90.073,89.962,0.35]
[1643329094997,6.25,90.073,89.962,0.35]
[1643329095797,112.1,90.072,89.962,0.35]
[1643329095998,6.0,90.062,89.962,0.35]
[1643329096201,35.97801883,90.061,89.962,0.35]
[1643329096397,36.22801883,90.061,89.962,0.35]
[1643329096597,6.0,90.051,89.962,0.35]
[1643329096802,6.0,90.051,89.964,112.1]
[1643329097003,35.97801883,90.061,89.974,6.0]
[1643329097400,35.97801883,90.061,89.966,112.1]
[1643329097401,6.0,90.051,89.975,0.25]
[1643329097600,6.0,90.051,89.976,6.0]
[1643329097800,6.0,90.051,89.977,112.35]
[1643329098098,6.0,90.051,89.978,0.1]
[1643329098299,6.0,90.051,89.977,2.21567322]
[1643329098300,6.0,90.051,89.977,0.25]
[1643329099102,6.0,90.051,89.971,0.35]
[1643329100604,13.33,90.09,89.971,0.35]
[1643329100804,46.6083,90.124,89.991,112.1]
[1643329101004,13.33,90.15,90.001,6.0]
[1643329101310,245.2277,90.2,90.001,6.0]
[1643329101311,13.33,90.17,90.003,112.1]
[1643329101506,22.61215606,90.149,90.013,6.0]
[1643329101805,41.85716972,90.148,90.02,29.9882]
[1643329102008,6.0,90.138,90.02,16.6582]
[1643329102205,6.0,90.138,90.021,0.25]
[1643329102404,6.0,90.138,90.021,2.21567322]
[1643329102609,40.56962508,90.129,90.022,1.9726038]
[1643329102804,0.25,90.128,90.023,0.25]
[1643329103004,6.0,90.119,90.032,6.0]
[1643329103406,0.25,90.118,90.034,6.0]
[1643329103606,0.25,90.118,90.043,6.0]
[1643329103808,0.25,90.118,90.044,0.25]
[1643329104308,0.25,90.118,90.0,68.8574]
[1643329104508,0.25,90.118,90.024,1.9726038]
[1643329105305,0.25,90.118,90.012,6.0]
[1643329105506,44.35042453,90.109,90.012,6.0]
[1643329105706,50.35042453,90.109,90.014,112.1]
[1643329105905,44.35042453,90.109,90.02,6.0]
[1643329106107,44.35042453,90.109,90.015,12.70335909]
[1643329106406,44.35042453,90.109,90.021,1.97904545]
[1643329106808,0.25,90.108,90.021,1.97904545]
[1643329107012,44.35042453,90.109,90.021,1.97904545]
[1643329107408,0.25,90.108,90.021,1.97904545]
[1643329107808,0.25,90.108,90.022,0.25]
[1643329108010,44.35042453,90.109,90.021,0.25]
[1643329108310,44.35042453,90.109,90.021,2.22904545]
[1643329108910,44.35042453,90.109,90.011,1.97904545]
[1643329109109,6.0,90.099,90.001,0.1]
[1643329109311,6.0,90.099,89.993,0.1]
[1643329109516,6.0,90.099,89.986,1.97904545]
[1643329109711,0.25,90.098,89.986,1.97904545]
[1643329109911,6.0,90.099,89.993,1.97904545]
[1643329110114,6.0,90.099,90.003,6.0]
[1643329110311,6.0,90.099,90.004,0.25]
[1643329110510,6.0,90.099,90.004,8.22904545]
[1643329110712,6.0,90.099,90.005,1.97904545]
[1643329110911,6.0,90.099,90.005,7.97904545]
[1643329111109,6.0,90.099,90.004,6.0]
[1643329111312,6.0,90.099,90.001,0.1]
[1643329111510,0.25,90.098,89.983,0.1]
[1643329112114,112.35,90.098,89.983,0.35]
[1643329112514,44.78682011,90.087,89.983,0.35]
[1643329112913,6.0,90.077,89.983,0.35]
[1643329113116,6.0,90.077,89.981,0.35]
[1643329113316,0.25,90.076,89.981,0.35]
[1643329114524,0.25,90.076,89.979,0.25]
[1643329114728,2.95669142,90.075,89.979,0.25]
[1643329114951,0.25,90.076,89.971,0.35]
[1643329115151,35.98930607,90.064,89.971,0.35]
[1643329115456,0.25,90.063,89.972,1.97904545]
[1643329115850,0.25,90.063,89.973,0.25]
[1643329116252,0.25,90.063,89.974,1.97904545]
[1643329116652,0.25,90.063,89.975,0.25]
[1643329117056,0.25,90.063,89.976,1.97904545]
[1643329117258,0.25,90.063,89.977,0.25]
[1643329117660,0.25,90.063,89.978,1.97904545]
[1643329117857,0.25,90.063,89.979,0.25]
[1643329118257,0.25,90.063,89.98,1.97904545]
[1643329118661,6.0,90.054,89.965,0.1]
[1643329118859,6.0,90.054,89.948,5.78209978]
[1643329118860,0.25,90.053,89.949,0.1]
[1643329119057,36.96560312,90.049,89.923,3.02675611]
[1643329119268,36.96560312,90.049,89.923,0.1]
[1643329119269,112.1,90.047,89.923,0.1]
[1643329119459,6.0,90.039,89.933,6.0]
[1643329119664,6.0,90.037,89.932,6.0]
[1643329119863,0.25,90.036,89.934,1.97904545]
[1643329120659,0.25,90.036,89.935,0.25]
[1643329121060,36.4530251,90.029,89.936,1.97904545]
[1643329121268,36.4530251,90.029,89.937,0.25]
[1643329121269,0.25,90.028,89.937,0.25]
[1643329121458,6.0,90.019,89.946,6.0]
[1643329121859,0.25,90.018,89.947,2.22904545]
[1643329122259,0.25,90.018,89.948,1.97904545]
[1643329122469,6.0,90.019,89.948,1.97904545]
[1643329122660,6.0,90.019,89.949,0.25]
[1643329122863,6.0,90.019,89.947,0.25]
[1643329123562,6.0,90.019,89.948,1.97904545]
[1643329123764,0.25,90.018,89.907,0.1]
[1643329123964,36.30299209,90.009,89.904,0.1]
[1643329124166,112.1,90.008,89.901,0.1]
[1643329124464,6.0,89.999,89.901,0.1]
[1643329124664,6.0,89.998,89.903,25.4356866]
[1643329124880,6.0,89.998,89.913,6.0]
[1643329125263,0.25,89.997,89.914,0.25]
[1643329126764,6.0,89.998,89.914,0.25]
[1643329127166,13.33,90.03,89.92,16.6771]
[1643329127365,49.1152,90.069,89.921,0.35]
[1643329127572,6.0,90.039,89.93,6.0]
[1643329127768,6.0,90.039,89.931,0.25]
[1643329127967,6.0,90.039,89.936,6.0]
[1643329128168,39.31052452,90.038,89.936,6.0]
[1643329128368,0.25,90.037,89.94,6.0]
[1643329128567,6.0,90.028,89.94,6.0]
[1643329128769,0.25,90.027,89.941,0.25]
[1643329129168,6.25,90.027,89.941,0.25]
[1643329129668,6.0,90.026,89.923,0.25]
[1643329129867,6.0,90.026,89.942,1.97904545]
[1643329130268,6.0,90.026,89.943,0.25]
[1643329130869,0.25,90.025,89.943,0.25]
[1643329131268,0.25,90.025,89.931,0.35]
[1643329131871,46.71098388,90.017,89.931,0.35]
[1643329132071,6.0,90.007,89.931,0.1]
[1643329132271,0.25,90.006,89.915,0.1]
[1643329132773,45.40976507,89.996,89.911,0.1]
[1643329132972,45.40976507,89.996,89.9,0.1]
[1643329133171,6.0,89.986,89.912,6.0]
[1643329133373,0.25,89.985,89.912,6.0]
[1643329133773,0.25,89.985,89.913,0.25]
[1643329134674,0.25,89.995,89.913,0.25]
[1643329136576,3.06067639,90.075,89.913,0.25]
[1643329136577,16.6792,90.06,89.913,112.35]
[1643329136780,92.07630602,90.606,90.011,1.97904545]
[1643329136781,3.06067639,90.097,90.011,1.97904545]
[1643329136978,4.5755849,90.123,90.011,1.97904545]
[1643329137177,126.6131,90.15,90.01,13.33]
[1643329137178,126.6131,90.15,90.021,6.0]
[1643329137378,126.6131,90.15,90.022,0.25]
[1643329137578,126.6131,90.15,90.022,57.79179572]
[1643329137579,45.47251577,90.149,90.022,57.79179572]
[1643329137786,45.47251577,90.149,90.03,16.6568]
[1643329138078,6.0,90.139,90.03,35.9868]
[1643329138280,6.0,90.139,90.032,6.0]
[1643329138480,6.0,90.139,90.033,6.0]
[1643329138879,6.0,90.139,90.011,1.97904545]
[1643329139078,42.54688665,90.129,90.001,0.1]
[1643329139279,42.54688665,90.129,89.973,0.1]
[1643329139477,6.0,90.119,89.971,1.97904545]
[1643329139679,38.35812861,90.109,89.971,1.97904545]
[1643329139882,86.58472861,90.109,89.974,23.21133216]
[1643329140078,6.0,90.099,89.975,0.1]
[1643329140283,6.0,90.099,89.98,16.6656]
[1643329140481,6.0,90.099,89.981,0.1]
[1643329140680,112.1,90.1,89.981,0.1]
[1643329140681,42.69697561,90.089,89.981,0.1]
[1643329140981,112.35,90.088,89.982,21.23228671]
[1643329141202,112.1,90.078,89.983,0.1]
[1643329141402,118.1,90.078,89.983,0.35]
[1643329141605,6.0,90.068,89.983,0.35]
[1643329141804,46.58828982,90.067,89.983,0.35]
[1643329142406,112.1,90.066,89.983,0.35]
[1643329142705,46.58828982,90.067,89.976,0.25]
[1643329142906,0.25,90.065,89.984,1.97904545]
[1643329143109,46.58828982,90.067,89.984,1.97904545]
[1643329143110,46.58828982,90.067,89.984,2.07904545]
[1643329143305,46.58828982,90.067,89.985,21.48228671]
[1643329143506,46.58828982,90.067,89.985,23.46133216]
[1643329143705,46.58828982,90.067,89.986,2.07904545]
[1643329143906,46.58828982,90.067,89.987,0.25]
[1643329144908,46.58828982,90.067,89.971,0.35]
[1643329145109,6.0,90.057,89.971,0.25]
[1643329145307,0.25,90.056,89.965,0.1]
[1643329145511,118.1,90.048,89.965,0.1]
[1643329145711,48.80767556,90.047,89.965,0.1]
[1643329146108,0.25,90.046,89.965,0.1]
[1643329146308,0.25,90.046,89.965,0.35]
[1643329147211,48.80767556,90.047,89.965,0.35]
[1643329147411,0.25,90.046,89.965,0.35]
[1643329147614,6.0,90.037,89.965,0.1]
[1643329147816,0.25,90.036,89.965,0.35]
[1643329148215,0.25,90.036,89.95,6.0]
[1643329148412,0.25,90.036,89.946,0.1]
[1643329148611,6.0,90.035,89.946,0.1]
[1643329148812,0.25,90.034,89.946,21.33228671]
[1643329149012,6.25,90.034,89.947,0.1]
[1643329149212,42.87016918,90.033,89.947,0.1]
[1643329149416,0.25,90.032,89.947,0.1]
[1643329149613,0.25,90.032,89.947,0.35]
[1643329150215,0.25,90.032,89.947,21.58228671]
[1643329150415,0.25,90.032,89.948,0.1]
[1643329150819,6.0,90.023,89.934,0.1]
[1643329151015,6.0,90.023,89.929,0.1]
[1643329151216,0.25,90.022,89.929,0.1]
[1643329151418,6.25,90.022,89.929,0.1]
[1643329151817,6.25,90.022,89.929,0.35]
[1643329152016,6.25,90.022,89.93,21.14034782]
[1643329152218,6.0,90.022,89.931,0.1]
[1643329152418,29.96720577,90.075,89.94,13.33]
[1643329152621,46.4946,90.074,89.941,6.1]
[1643329152820,46.4946,90.074,89.95,6.0]
[1643329153018,11.57338703,90.087,89.96,13.33]
[1643329153222,72.4665,90.099,89.961,0.1]
[1643329153423,57.50385358,90.086,89.97,6.0]
[1643329153621,57.50385358,90.086,89.971,6.0]
[1643329153819,6.0,90.076,89.971,8.32926311]
[1643329154119,6.0,90.075,89.973,6.0]
[1643329154324,6.0,90.075,89.974,0.25]
[1643329154524,6.0,90.076,89.982,6.0]
[1643329154722,6.0,90.076,89.983,6.0]
[1643329154923,6.0,90.076,89.984,6.0]
[1643329155123,3.06067639,90.125,89.99,6.0]
[1643329155325,3.06067639,90.13,90.0,13.33]
[1643329155525,46.07639545,90.137,90.02,16.6584]
[1643329155725,46.07639545,90.137,90.02,29.9884]
[1643329155928,46.07639545,90.137,90.03,6.0]
[1643329156126,45.80660514,90.136,90.031,6.0]
[1643329156324,1.53528569,90.123,90.031,8.22926311]
[1643329156532,34.85776261,90.122,90.031,8.22926311]
[1643329156724,34.85776261,90.122,90.031,6.25]
[1643329157128,34.85776261,90.122,90.031,0.25]
[1643329157326,34.85776261,90.122,90.041,6.0]
[1643329157527,34.85776261,90.122,90.05,13.33]
[1643329157827,1.53528569,90.158,90.07,16.6492]
[1643329158027,1.53528569,90.164,90.08,6.0]
[1643329158226,1.53528569,90.173,90.081,112.1]
[1643329158432,1.53528569,90.173,90.091,112.1]
[1643329158640,43.3370095,90.182,90.1,6.0]
[1643329158828,43.3370095,90.182,90.101,6.25]
[1643329159030,22.53295893,90.181,90.11,6.0]
[1643329159229,22.53295893,90.181,90.11,19.33]
[1643329159427,22.53295893,90.181,90.111,6.25]
[1643329159629,22.53295893,90.181,90.121,6.0]
[1643329159829,43.3370095,90.182,90.122,0.25]
[1643329160229,43.3370095,90.182,90.11,13.33]
[1643329160429,0.25,90.181,90.09,13.33]
[1643329160628,43.3370095,90.182,90.085,1.97926311]
[1643329160830,43.3370095,90.182,90.09,13.33]
[1643329161034,43.3370095,90.182,90.091,12.99062677]
[1643329161431,43.3370095,90.182,90.092,12.99062677]
[1643329161628,43.3370095,90.182,90.102,6.0]
[1643329161829,43.3370095,90.182,90.11,13.33]
[1643329162229,43.3370095,90.182,90.08,13.33]
[1643329162528,0.25,90.181,90.08,13.33]
[1643329162729,0.25,90.181,90.051,21.14034782]
[1643329162928,0.25,90.181,90.08,1.97926311]
[1643329163128,25.51538569,90.217,90.081,0.25]
[1643329163331,1.53528569,90.218,90.081,0.25]
[1643329163533,1.53528569,90.218,90.091,112.1]
[1643329163735,22.47361356,90.217,90.1,13.33]
[1643329163929,22.47361356,90.217,90.101,6.0]
[1643329164129,42.6944253,90.234,90.11,6.0]
[1643329164428,22.47361356,90.233,90.15,16.6348]
[1643329164630,22.47361356,90.233,90.16,6.0]
[1643329164831,0.25,90.232,90.161,0.25]
[1643329165027,0.25,90.232,90.161,6.25]
[1643329165636,0.25,90.233,90.17,6.0]
[1643329165834,0.25,90.233,90.139,1.97926311]
[1643329166032,0.25,90.233,90.161,0.25]
[1643329166435,22.44106904,90.232,90.122,6.0]
[1643329166735,6.0,90.222,90.078,21.14034782]
[1643329166932,6.0,90.222,90.09,29.9747]
[1643329167134,42.04818259,90.22,90.09,29.9747]
[1643329167359,0.25,90.219,90.09,29.9747]
[1643329167534,6.0,90.21,90.09,29.9747]
[1643329167736,6.0,90.21,90.094,0.25]
[1643329167936,6.0,90.209,90.1,16.6438]
[1643329168135,6.0,90.208,90.11,13.33]
[1643329168333,6.0,90.208,90.111,0.25]
[1643329168532,6.0,90.21,90.111,21.39034782]
[1643329168735,6.0,90.21,90.112,23.11961093]
[1643329169136,42.04818259,90.22,90.122,6.0]
[1643329169336,42.04818259,90.22,90.13,29.9672]
[1643329169535,42.04818259,90.22,90.14,6.0]
[1643329169733,42.04818259,90.22,90.15,13.33]
[1643329170134,42.04818259,90.22,90.151,0.25]
[1643329170336,42.04818259,90.22,90.151,2.22926311]
[1643329170534,42.04818259,90.22,90.161,6.0]
[1643329170935,1.53528569,90.276,90.162,8.22926311]
[1643329171136,6.0,90.266,90.162,2.22926311]
[1643329171342,6.0,90.266,90.172,6.0]
[1643329171538,22.40330878,90.265,90.163,1.97926311]
[1643329171736,22.40330878,90.265,90.164,0.25]
[1643329171937,36.02342886,90.254,90.164,0.25]
[1643329172139,6.0,90.244,90.165,1.97926311]
[1643329172336,0.25,90.243,90.17,19.33]
[1643329172737,0.25,90.243,90.171,0.25]
[1643329173939,0.25,90.243,90.17,19.33]
[1643329174139,12.21,90.243,90.144,1.97926311]
[1643329174345,12.21,90.243,90.13,13.33]
[1643329174640,12.21,90.243,90.06,166.57]
[1643329174641,43.4037042,90.232,90.11,13.33]
[1643329174863,0.25,90.231,90.11,13.33]
[1643329175040,6.0,90.222,90.11,13.33]
[1643329175240,0.25,90.221,90.12,16.6412]
[1643329175440,0.25,90.221,90.13,13.33]
[1643329175742,6.25,90.221,90.13,13.33]
[1643329176248,6.25,90.221,90.131,0.25]
[1643329176442,0.25,90.221,90.131,0.25]
[1643329176640,35.40942906,90.21,90.131,0.25]
[1643329176839,0.25,90.209,90.131,0.25]
[1643329177240,6.0,90.2,90.131,0.25]
[1643329177439,6.0,90.2,90.14,16.6375]
[1643329177641,0.25,90.209,90.14,16.6375]
[1643329177838,35.40942906,90.21,90.141,0.25]
[1643329179443,35.40942906,90.21,90.141,112.35]
[1643329180141,35.40942906,90.21,90.151,6.0]
[1643329180342,35.40942906,90.21,90.152,0.25]
[1643329182141,0.25,90.209,90.152,0.25]
[1643329182540,0.25,90.209,90.141,0.25]
[1643329182743,0.25,90.209,90.151,0.25]
[1643329183041,0.25,90.209,90.141,0.25]
[1643329183843,0.25,90.209,90.131,0.25]
[1643329185545,0.25,90.209,90.131,6.25]
[1643329185844,0.25,90.209,90.132,0.25]
[1643329186044,0.25,90.209,90.131,6.0]
[1643329186263,0.25,90.209,90.132,0.25]
[1643329186447,0.25,90.209,90.119,19.3781256]
[1643329186448,6.0,90.2,90.1,16.6451]
[1643329186651,1.53528569,90.192,90.08,55.4805]
[1643329186854,43.17050711,90.191,90.082,12.54346263]
[1643329187052,35.30492241,90.171,90.082,12.54346263]
[1643329187248,1.53528569,90.166,90.082,12.54346263]
[1643329187449,1.53528569,90.165,90.064,19.3781256]
[1643329187650,1.53528569,90.164,90.07,16.6482]
[1643329187850,1.53528569,90.161,90.07,16.6482]
[1643329188049,6.0,90.151,90.045,19.3781256]
[1643329188251,1.53528569,90.145,90.074,6.0]
[1643329188450,6.0,90.142,90.055,6.0]
[1643329188654,112.1,90.141,90.055,6.0]
[1643329188858,112.35,90.141,90.055,6.0]
[1643329189257,112.35,90.141,90.056,0.25]
[1643329189657,112.35,90.141,90.055,6.0]
[1643329189882,43.30505473,90.13,90.026,19.3781256]
[1643329190081,6.0,90.12,90.026,19.3781256]
[1643329190285,0.25,90.119,90.0,0.1]
[1643329190480,0.25,90.119,89.995,0.1]
[1643329190679,0.25,90.119,89.98,16.6649]
[1643329190680,1.53528569,90.108,89.981,0.1]
[1643329190880,113.63528569,90.106,89.981,0.1]
[1643329191080,42.22057582,90.107,89.99,6.0]
[1643329191081,6.0,90.096,89.99,6.0]
[1643329191279,6.0,90.096,89.991,0.25]
[1643329191482,45.2262575,90.092,89.991,30.64393052]
[1643329191781,45.2262575,90.092,89.992,44.61451167]
[1643329191982,45.2262575,90.092,90.001,6.0]
[1643329192179,0.25,90.091,90.002,6.0]
[1643329192382,0.25,90.091,90.002,6.25]
[1643329192581,0.25,90.091,89.994,0.1]
[1643329192582,0.25,90.091,90.003,6.0]
[1643329192981,45.2262575,90.092,89.99,6.0]
[1643329193181,0.25,90.091,89.99,6.0]
[1643329193384,45.2262575,90.092,89.991,6.0]
[1643329193582,6.0,90.082,89.992,6.0]
[1643329193981,6.0,90.082,90.0,6.0]
[1643329194184,45.2262575,90.092,90.0,6.0]
[1643329194381,6.0,90.082,90.002,6.0]
[1643329194782,45.2262575,90.092,90.003,0.25]
[1643329195983,0.25,90.091,90.003,0.25]
[1643329198083,6.0,90.082,90.003,0.25]
[1643329198285,0.25,90.081,90.003,0.25]
[1643329198487,0.25,90.081,89.991,0.25]
[1643329198687,0.25,90.081,89.99,6.0]
[1643329198887,6.25,90.081,89.991,0.25]
[1643329199590,6.25,90.081,89.981,0.1]
[1643329199790,2.95669142,90.08,89.974,0.1]
[1643329199987,6.0,90.07,89.965,6.0]
[1643329200188,44.53243584,90.069,89.965,6.0]
[1643329200591,6.0,90.059,89.966,18.08606282]
[1643329200788,0.25,90.068,89.967,0.35]
[1643329200990,0.25,90.068,89.976,6.0]
[1643329201189,0.25,90.068,89.977,112.1]
[1643329201392,44.53243584,90.069,89.978,0.1]
[1643329201589,29.9958,90.14,90.01,16.6615]
[1643329201790,1.53528569,90.152,90.011,0.25]
[1643329201989,1.53528569,90.157,90.011,112.35]
[1643329202192,1.53528569,90.157,90.011,142.84948608]
[1643329202391,22.3955148,90.156,90.013,112.1]
[1643329202590,63.27471095,90.156,90.013,112.1]
[1643329202792,6.0,90.146,90.014,11.81262708]
[1643329202993,24.0188,90.145,90.014,11.81262708]
[1643329203193,46.6643148,90.145,90.02,16.6588]
[1643329203493,46.22141612,90.134,90.021,0.25]
[1643329203896,6.0,90.124,90.021,0.25]
[1643329204294,0.25,90.123,90.021,0.25]
[1643329204495,6.25,90.123,90.012,0.25]
[1643329204893,6.25,90.123,90.02,6.0]
[1643329205294,6.25,90.123,90.02,5.5]
[1643329205893,6.25,90.123,90.021,0.25]
[1643329206493,6.25,90.123,89.997,0.1]
[1643329206494,6.25,90.123,89.997,112.45]
[1643329206694,112.1,90.122,89.998,0.1]
[1643329206896,0.25,90.121,89.998,30.59948608]
[1643329207194,46.62065601,90.111,89.999,30.59948608]
[1643329207397,46.62065601,90.111,90.008,112.1]
[1643329207595,46.62065601,90.111,90.018,6.0]
[1643329207596,6.0,90.101,90.018,6.0]
[1643329207794,6.0,90.101,90.019,0.25]
[1643329207994,6.0,90.101,90.019,6.25]
[1643329208197,46.62065601,90.111,90.02,6.0]
[1643329208396,46.62065601,90.111,90.021,0.25]
[1643329208796,0.25,90.11,90.021,0.25]
[1643329211500,112.35,90.11,90.021,0.25]
[1643329212100,0.25,90.11,90.02,11.56262708]
[1643329212301,0.25,90.11,89.989,18.08606282]
[1643329212302,0.25,90.11,90.001,11.66262708]
[1643329212501,6.0,90.101,89.99,0.1]
[1643329212701,6.0,90.101,89.972,0.1]
[1643329212899,6.0,90.099,89.972,0.1]
[1643329213101,19.33,90.09,89.972,0.1]
[1643329213307,42.07196385,90.089,89.953,0.1]
[1643329213508,42.07196385,90.089,89.934,1.50294211]
[1643329213509,0.30931985,90.079,89.934,1.50294211]
[1643329213705,1.53528569,90.078,89.924,1.50294211]
[1643329213907,48.92687217,90.069,89.917,29.01761942]
[1643329214203,16.6835,90.04,89.911,1.50294211]
[1643329214408,16.6835,90.04,89.9,35.23699234]
[1643329214409,41.07477861,90.039,89.909,1.50294211]
[1643329214605,6.0,90.029,89.907,1.50294211]
[1643329214803,0.25,90.028,89.907,1.50294211]
[1643329215006,0.25,90.028,89.917,6.0]
[1643329215206,0.25,90.028,89.911,6.0]
[1643329215424,0.25,90.028,89.916,6.0]
[1643329215704,6.25,90.028,89.911,6.0]
[1643329216128,16.6868,90.02,89.911,6.0]
[1643329216306,36.58810321,90.019,89.901,17.54916282]
[1643329216506,6.0,90.009,89.893,1.50294211]
[1643329216706,6.0,90.009,89.887,1.50294211]
[1643329216906,0.25,90.008,89.889,1.50294211]
[1643329217122,6.25,90.008,89.882,36.06128294]
[1643329217509,6.25,90.008,89.892,6.0]
[1643329217708,39.51810462,89.999,89.892,6.0]
[1643329218007,6.0,89.989,89.892,6.0]
[1643329218305,0.25,89.988,89.893,0.25]
[1643329218507,0.25,89.988,89.893,18.80509234]
[1643329218706,0.25,89.988,89.894,18.75509234]
[1643329218908,112.35,89.988,89.903,6.0]
[1643329219108,40.61594707,89.977,89.904,6.0]
[1643329219310,0.25,89.976,89.905,0.25]
[1643329219508,0.25,89.976,89.895,0.25]
[1643329219509,6.0,89.967,89.892,6.0]
[1643329219912,0.25,89.966,89.863,1.50294211]
[1643329220111,0.25,89.966,89.862,1.50294211]
[1643329220309,0.25,89.966,89.864,17.5061906]
[1643329220509,0.25,89.966,89.865,0.2]
[1643329220711,112.35,89.966,89.865,0.2]
[1643329221110,49.23632529,89.955,89.866,17.5061906]
[1643329221311,49.23632529,89.955,89.871,6.0]
[1643329221515,49.23632529,89.955,89.88,16.6844]
[1643329221711,49.23632529,89.955,89.881,0.2]
[1643329221911,49.23632529,89.955,89.89,6.0]
[1643329222111,0.25,89.954,89.89,6.0]
[1643329222313,0.25,89.954,89.891,0.25]
[1643329223312,0.25,89.954,89.883,0.25]
[1643329223739,49.23632529,89.955,89.883,0.25]
[1643329223937,49.23632529,89.955,89.884,17.5061906]
[1643329224140,49.23632529,89.955,89.894,6.0]
[1643329224339,49.23632529,89.955,89.895,0.25]
[1643329225341,0.25,89.954,89.895,0.25]
[1643329225540,49.23632529,89.955,89.895,0.25]
[1643329225941,49.23632529,89.955,89.895,17.7561906]
[1643329226143,49.23632529,89.955,89.905,6.0]
[1643329226440,49.23632529,89.955,89.906,0.25]
[1643329226642,49.23632529,89.955,89.906,6.25]
[1643329226841,49.23632529,89.955,89.906,0.45]
[1643329227042,49.23632529,89.955,89.906,0.25]
[1643329227241,23.8085,90.008,89.906,0.25]
[1643329227443,23.8085,90.008,89.884,112.1]
[1643329227640,6.0,89.998,89.894,6.0]
[1643329227842,6.0,89.998,89.895,0.25]
[1643329228340,36.64324854,89.997,89.895,0.25]
[1643329228540,6.0,89.987,89.895,0.25]
[1643329228942,6.0,89.987,89.891,0.45]
[1643329229141,0.25,89.986,89.891,0.45]
[1643329230142,6.25,89.986,89.898,6.0]
[1643329230345,6.25,89.986,89.9,6.0]
[1643329230543,6.0,89.985,89.9,6.0]
[1643329230746,6.0,89.985,89.901,0.25]
[1643329230944,0.25,89.984,89.901,0.25]
[1643329231144,6.0,89.985,89.901,0.25]
[1643329231547,0.25,89.984,89.901,0.25]
[1643329231744,0.25,89.984,89.891,0.45]
[1643329232146,0.25,89.984,89.9,6.0]
[1643329232447,6.0,89.987,89.901,0.25]
[1643329232850,6.0,89.987,89.911,112.1]
[1643329233047,6.0,89.987,89.912,0.2]
[1643329233246,6.0,89.987,89.912,0.45]
[1643329233447,0.25,89.986,89.912,0.45]
[1643329233647,0.25,89.986,89.912,0.25]
[1643329234050,0.25,89.986,89.912,6.25]
[1643329234248,36.64324854,89.997,89.912,6.25]
[1643329234448,1.53528569,90.076,89.913,114.079259]